[Event "17th Delhi GM Open 2019-B"]
[Site "Delhi"]
[Date "2019.01.11"]
[Round "7"]
[White "Farzad, Khusraw"]
[Black "Aryan"]
[Result "0-1"]
[ECO "A01"]
[WhiteElo "1877"]
[BlackElo "1784"]
[Annotator "NA"]
[PlyCount "43"]
[EventDate "2019.01.09"]
[EventType "swiss"]
[EventCountry "IND"]
[SourceTitle "playchess.com"]
[Source "ChessBase"]
[SourceQuality "1"]
[TimeControl "3600+30"]

{[%evp 10,43,14,29,48,22,22,-5,0,-1,0,-40,-34,-77,-72,-87,-75,-76,-70,-91,-114,-112,-105,-200,-75,-68,-78,-211,-205,-212,-98,-337,-320,-29995,-29996,-29996]} 1. b3 {[%emt 0:00:00]} b6 {[%emt 0:00:00]} 2. Bb2 {[%emt 0:00:00]} Bb7 {[%emt 0:00:00]} 3. e3 {[%emt 0:00:00]} e6 {[%emt 0:00:00]} 4. Nf3 {[%emt 0:00:00]} f5 {[%emt 0:00:00]} (4... Nf6 5. g3 Be7 6. Bg2 O-O 7. O-O c5 8. c4 d6 9. Nc3 Nbd7 10. d4 Ne4 11. d5 Nxc3 12. Bxc3 exd5 13. cxd5 Bf6 14. Rc1 Bxc3 15. Rxc3 Nf6 16. Nh4 Re8 17. Re1 Ne4 18. Rc4 Nf6 {0-1 (37) Giri,A (2734)-Ivanchuk,V (2753) Leon 2013}) 5. Be2 {[%emt 0:00:00]} Nf6 {[%emt 0:00:00]} 6. O-O {[%emt 0:00:00] LiveBook: 3 Games. A01: Nimzowitsch-Larsen Opening} Nc6 {[%emt 0:00:00]} 7. h3 $146 {[%emt 0:00:00]} ({Predecessor:} 7. d3 Qe7 8. Nbd2 Rg8 9. a4 g5 10. Nc4 d6 11. Nd4 Nd8 12. Bf3 {0-1 (26) Redhead,G-Oraha,Z London,Canada 1995}) 7... Bd6 {[%emt 0:00:00]} 8. Nc3 {[%emt 0:00:00] The position is equal.} a6 {[%emt 0:00:00]} 9. d4 {[%emt 0:00:00]} Qe7 {[%emt 0:00:00]} 10. a3 {[%emt 0:00:00]} O-O-O {[%emt 0:00:00]} 11. b4 {[%emt 0:00:00]} Rhg8 {[%emt 0:00:00]} 12. b5 {[%emt 0:09:13]} axb5 {[%emt 0:00:00]} 13. Nxb5 {[%emt 0:00:00]} g5 $1 {[%emt 0:00:00]} 14. Ne5 {[%emt 0:07:22]} Bxe5 {[%emt 0:18:48]} 15. dxe5 {[%emt 0:00:00]} Ne4 $1 {[%emt 0:00:00]} 16. Bf3 {[%emt 0:07:19] [#]} (16. g3 $17 {keeps fighting.}) 16... h5 {[%emt 0:08:52]} (16... g4 $1 $19 {[%cal Rg4f3][%mdl 512] is more deadly.} 17. hxg4 Qh4) 17. Bxe4 $17 {[%emt 0:04:54]} fxe4 {[%emt 0:00:00]} 18. Qxh5 {[%emt 0:00:00] [#]} (18. g3 $17 {was forced.}) 18... g4 $1 $19 {[%emt 0:03:17]} 19. g3 {[%emt 0:01:35]} ({Don't go for} 19. hxg4 $2 Rh8 $19) 19... gxh3 {[%emt 0:02:27]} (19... Rdf8 $19 {has better winning chances.} 20. a4 Qg7) 20. Qxh3 $2 {[%emt 0:05:50]} (20. a4 $17 {might work better.}) 20... Rh8 {[%emt 0:01:26]} 21. Qg4 $2 {[%emt 0:00:00]} (21. Nd6+ $19 cxd6 22. exd6) 21... Qh7 {[%emt 0:02:41]} 22. Qh4 {[%emt 0:00:00] Accuracy: White = 20%, Black = 63%.} 0-1

[Event "17th Delhi GM Open 2019-B"]
[Site "Delhi"]
[Date "2019.01.11"]
[Round "7"]
[White "Rivera Martinez, Luis Manu"]
[Black "Dhanush Ragav N S"]
[Result "0-1"]
[ECO "C82"]
[WhiteElo "1831"]
[BlackElo "1854"]
[Annotator "NA RC"]
[PlyCount "66"]
[EventDate "2019.01.09"]
[EventType "swiss"]
[EventCountry "IND"]
[SourceTitle "playchess.com"]
[Source "ChessBase"]
[SourceQuality "1"]
[TimeControl "3600+30"]

{[%evp 8,66,22,12,50,37,43,33,24,29,37,16,36,-2,1,-33,-39,-68,-28,-55,-28,-29,-10,32767,32767,-34,-20,-149,-28,-148,-87,-95,-29,-129,-172,-154,-114,-162,-150,-427,-400,-639,-131,-121,-145,-159,-145,-227,-250,-246,-93,-244,-275,-532,-534,-1243,-1510,-1781,-6411,-2937,-1584]} 1. e4 {[%emt 0:00:00]} e5 {[%emt 0:00:00]} 2. Nf3 {[%emt 0:00:00]} Nc6 {[%emt 0:00:00]} 3. Bb5 {[%emt 0:00:00]} a6 {[%emt 0:00:00]} 4. Ba4 {[%emt 0:00:00]} Nf6 {[%emt 0:00:00]} 5. O-O {[%emt 0:00:00]} Nxe4 {[%emt 0:00:00]} 6. d4 {[%emt 0:00:00]} b5 {[%emt 0:00:00]} 7. Bb3 {[%emt 0:00:00]} d5 {[%emt 0:00:00]} 8. dxe5 {[%emt 0:00:00]} Be6 {[%emt 0:00:00]} 9. c3 {[%emt 0:00:00]} Bc5 {[%emt 0:00:00]} 10. a4 {[%emt 0:00:00] LiveBook: 5 Games} O-O {[%emt 0:01:20] C82: Open Ruy Lopez: 9 c3 without 9...Be7} 11. Bf4 $146 {[%emt 0:00:00]} ({Predecessor:} 11. axb5 axb5 12. Rxa8 Qxa8 13. Nbd2 Qa7 14. Qe2 {½-½ (14) Petrov,M (2421)-Todorovic,G (2462) Belgrade 2016}) 11... b4 {[%emt 0:13:48]} 12. Qd3 {[%emt 0:14:29]} Na5 {[%emt 0:13:15]} 13. Bc2 {[%emt 0:00:35]} b3 {[%emt 0:03:30]} 14. Bd1 {[%emt 0:00:02]} Bf5 {[%emt 0:02:11]} 15. Nd4 {[%emt 0:09:49]} Bg6 {[%emt 0:00:51]} 16. Qh3 {[%emt 0:06:58]} Qb8 {[%emt 0:03:22]} 17. Bh5 {[%emt 0:09:50]} (17. Nd2 $11) 17... Qb6 {[%emt 0:01:05]} ({Black should try} 17... Nc4 $17 18. Bd1 Qb7) 18. Be3 {[%emt 0:05:32]} (18. Nd2 $1 $15) 18... Nc4 {[%emt 0:00:30]} 19. a5 {[%emt 0:00:45]} Nxa5 {[%emt 0:00:31]} (19... Qb7 $17 20. Be2 Nxe3 21. Qxe3 f6) 20. f3 {[%emt 0:02:38]} (20. Bxg6 $11 fxg6 21. Qd7) 20... Bxh5 {[%emt 0:00:30]} 21. fxe4 {[%emt 0:01:03]} Nc4 {[%emt 0:00:34]} 22. exd5 {[%emt 0:00:21]} Rae8 {[%emt 0:00:28]} 23. Qxh5 $2 {[%emt 0:01:00]} (23. Qg3 Bg6 24. Nd2 Nxd2 25. Bxd2) 23... Nxe3 {[%emt 0:00:17]} 24. Rf4 {[%emt 0:00:29]} (24. Ra4 $142 Nxf1 25. Kxf1) 24... Nxd5 $2 {[%emt 0:00:39]} (24... Nc2 $19 {is more deadly.} 25. Ra4 Qb5 {[%mdl 64] Trapped Piece}) 25. Rh4 {[%emt 0:00:05]} h6 {[%emt 0:00:33]} 26. Nd2 {[%emt 0:00:34]} Rd8 {[%emt 0:00:32]} 27. Kh1 {[%emt 0:00:27]} Bxd4 {[%emt 0:00:27]} 28. cxd4 {[%emt 0:00:37]} Nb4 {[%emt 0:00:32]} (28... Ne3 $19 29. Qe2 Nf5) 29. Qg4 $2 {[%emt 0:00:46]} (29. Rf1 $17 Nd3 30. Rf6) 29... Nc2 {[%emt 0:00:27]} 30. Ra4 $2 {[%emt 0:01:06]} (30. Rg1 {was worth a try.}) 30... Qb5 {[%emt 0:00:00]} 31. d5 {[%emt 0:00:24]} Rxd5 {[%emt 0:00:26] Double Attack} 32. Nf3 {[%emt 0:00:34]} Rd1+ {[%emt 0:00:26]} 33. Ng1 {[%emt 0:00:00]} Qf1 $19 {[%emt 0:00:18]} 0-1

[Event "17th Delhi GM Open 2019-B"]
[Site "Delhi"]
[Date "2019.01.11"]
[Round "7"]
[White "Dupit Tabu"]
[Black "Vishnu, DevYadav"]
[Result "1-0"]
[ECO "E04"]
[WhiteElo "1821"]
[BlackElo "1751"]
[Annotator "NA RC"]
[PlyCount "86"]
[EventDate "2019.01.09"]
[EventType "swiss"]
[EventCountry "IND"]
[SourceTitle "playchess.com"]
[Source "ChessBase"]
[SourceQuality "1"]
[TimeControl "3600+30"]

{[%evp 8,86,20,6,19,-12,-4,3,-1,-39,-12,-28,-31,-45,0,-12,-18,-24,-16,-3,0,-27,32767,32767,32767,32767,32767,14,24,40,81,40,89,100,68,33,35,-31,35,16,100,54,154,181,238,129,32767,32767,32767,217,221,254,390,435,467,412,406,217,566,580,858,852,1128,1386,1224,1022,32767,32767,32767,32767,32767,1173,851,976,2068,1853,2279,29983,29986,29988,29992]} 1. d4 {[%emt 0:00:00]} Nf6 {[%emt 0:00:00]} 2. c4 {[%emt 0:00:00]} e6 {[%emt 0:00:00]} 3. Nf3 {[%emt 0:00:00]} d5 {[%emt 0:00:00]} 4. g3 {[%emt 0:00:00]} dxc4 {[%emt 0:00:00]} 5. Bg2 {[%emt 0:00:00]} c6 {[%emt 0:00:00]} 6. O-O {[%emt 0:00:00]} b5 {[%emt 0:00:00]} 7. a4 {[%emt 0:00:00] E04: Open Catalan: 5 Nf3} Bb7 {[%emt 0:00:00]} 8. b3 {[%emt 0:00:00]} (8. Ne5 a6 9. Nc3 Nd5 10. e4 Nxc3 11. bxc3 Be7 12. Rb1 Qc8 13. Qg4 g6 14. f4 Nd7 15. f5 Nxe5 16. dxe5 h5 17. Qf3 exf5 18. exf5 Qxf5 19. Qxc6+ Bxc6 20. Bxc6+ {½-½ (78) Inarkiev,E (2689)-Piorun,K (2651) Katowice 2017}) 8... cxb3 {[%emt 0:00:00]} 9. Qxb3 {[%emt 0:00:00]} b4 {[%emt 0:00:00]} 10. a5 {[%emt 0:00:00] LiveBook: 3 Games} Qd5 {[%emt 0:00:31]} ({Black should play} 10... c5 $15 11. Nbd2 Be7) 11. Qb2 $146 {[%emt 0:00:00]} ({Predecessor:} 11. Qa4 Qb5 12. Qc2 Bd6 13. Re1 c5 14. Nbd2 O-O 15. e4 {0-1 (41) Simeonidis,I (2269)-Mastrovasilis,D (2384) Chania 1999}) 11... c5 {[%emt 0:02:23]} 12. dxc5 {[%emt 0:00:00]} Bxc5 {[%emt 0:03:04]} 13. Bg5 {[%emt 0:00:00]} O-O {[%emt 0:12:22]} 14. Nbd2 {[%emt 0:00:00]} Qf5 {[%emt 0:04:23]} 15. Nh4 {[%emt 0:00:00]} Qxg5 {[%emt 0:00:31]} 16. Bxb7 {[%emt 0:00:00]} Nbd7 {[%emt 0:00:01]} 17. Bxa8 {[%emt 0:00:00]} Rxa8 {[%emt 0:06:06]} 18. Nhf3 {[%emt 0:00:00]} Qg6 {[%emt 0:01:31]} 19. Nb3 {[%emt 0:00:00]} ({White should play} 19. Rac1 $16) 19... Be7 {[%emt 0:02:05]} 20. Rac1 {[%emt 0:00:00]} Nd5 {[%emt 0:03:13] [#]} 21. Qc2 {[%emt 0:00:00]} ({White should try} 21. Rc4 $1 $16) 21... Nc3 {[%emt 0:09:11]} 22. Rfe1 {[%emt 0:00:00]} Rd8 {[%emt 0:02:47]} (22... Qh5 $1 $15) 23. Nfd4 {[%emt 0:00:00]} Nb8 {[%emt 0:03:38]} (23... Kf8 $14) 24. e3 {[%emt 0:00:00]} Qg4 {[%emt 0:01:50] [#]} ({Better is} 24... Qxc2 $14 25. Rxc2 g6) 25. Ne2 $1 {[%emt 0:00:00]} Ne4 {[%emt 0:04:17]} (25... Qc4 {is a better defense.}) 26. Nbd4 {[%emt 0:00:00]} (26. Red1 $18 Rf8 27. Nbd4) 26... Ng5 {[%emt 0:06:29]} 27. f4 {[%emt 0:00:00]} Nf3+ {[%emt 0:01:28]} 28. Nxf3 {[%emt 0:00:00]} Qxf3 {[%emt 0:00:00]} 29. Nd4 {[%emt 0:00:00]} Qh5 {[%emt 0:00:50]} (29... Qd5 {is a better defense.} 30. Qc7 Bf6 31. Qxa7 h6) 30. Qc7 $1 {[%emt 0:00:00]} Bf6 {[%emt 0:03:07]} 31. Qxa7 {[%emt 0:00:00]} h6 {[%emt 0:02:12]} 32. a6 {[%emt 0:00:34]} (32. Qb6 $142) 32... e5 $2 {[%emt 0:03:01]} (32... Nxa6 33. Qb6 (33. Qxa6 Rxd4 34. Rc8+ Kh7 $16) 33... Kh7) 33. fxe5 {[%emt 0:00:01]} Bxe5 {[%emt 0:00:37]} 34. Qb6 {[%emt 0:02:05]} Re8 {[%emt 0:00:00]} 35. Qb5 {[%emt 0:00:49]} Rd8 {[%emt 0:00:37]} 36. a7 {[%emt 0:00:29]} Nd7 {[%emt 0:01:08]} 37. Qxd7 {[%emt 0:00:01]} Rxd7 {[%emt 0:00:01]} 38. a8=Q+ {[%emt 0:00:02]} Kh7 {[%emt 0:00:03]} 39. Qe4+ {[%emt 0:01:03]} g6 {[%emt 0:00:01]} 40. Rc5 {[%emt 0:00:39]} f6 {[%emt 0:01:24]} 41. Nf3 {[%emt 0:00:01]} b3 {[%emt 0:00:00]} 42. Nxe5 {[%emt 0:00:37]} fxe5 {[%emt 0:00:41]} 43. Rxe5 {[%emt 0:00:01]} Qh3 {[%emt 0:00:01]} 1-0

[Event "17th Delhi GM Open 2019-B"]
[Site "Delhi"]
[Date "2019.01.11"]
[Round "7"]
[White "Sharsha Backer"]
[Black "Dhanasekar, K.."]
[Result "1-0"]
[ECO "D36"]
[WhiteElo "1812"]
[BlackElo "1694"]
[Annotator "NA RC"]
[PlyCount "93"]
[EventDate "2019.01.09"]
[EventType "swiss"]
[EventCountry "IND"]
[SourceTitle "playchess.com"]
[Source "ChessBase"]
[SourceQuality "1"]
[TimeControl "3600+30"]

{[%evp 8,91,14,11,19,19,42,26,23,12,19,0,37,9,30,-23,0,-35,14,0,23,2,6,-8,-3,-18,-12,-31,-41,-33,32767,-39,-32,-43,-28,-39,-17,-57,-66,-92,-47,32767,0,0,0,0,0,-25,0,-15,-10,-51,-48,-56,-50,-78,-57,-61,0,0,0,0,0,0,209,208,361,378,444,51,67,70,186,260,406,65,646,770,925,985,29990,29991,29991,5114,5073,29968]} 1. d4 {[%emt 0:00:00]} d5 {[%emt 0:00:00]} 2. c4 {[%emt 0:00:00]} e6 {[%emt 0:00:00]} 3. Nc3 {[%emt 0:00:00]} Nf6 {[%emt 0:00:00]} 4. cxd5 {[%emt 0:00:00]} exd5 {[%emt 0:00:00]} 5. Bg5 {[%emt 0:00:00]} c6 {[%emt 0:00:00]} 6. e3 {[%emt 0:00:00]} Nbd7 {[%emt 0:00:00]} 7. Bd3 {[%emt 0:00:00]} Bd6 {[%emt 0:00:00]} 8. Nf3 {[%emt 0:00:00]} O-O {[%emt 0:00:00]} 9. Qc2 {[%emt 0:00:00]} h6 {[%emt 0:00:00]} 10. Bh4 {[%emt 0:00:00]} Re8 {[%emt 0:00:00]} 11. O-O-O {[%emt 0:00:00]} Qa5 {[%emt 0:00:00] D36: Queen's Gambit Declined: Exchange Variation: Main line (5 Bg5 c6 6 Qc2)} 12. Kb1 {[%emt 0:00:00] LiveBook: 6 Games} Bb4 {[%emt 0:00:00]} (12... Ne4 $5) 13. Nd2 {[%emt 0:00:00]} b5 $146 {[%emt 0:00:00]} ({Predecessor:} 13... Bxc3 14. Qxc3 Qxc3 15. bxc3 Ne4 16. Nxe4 dxe4 17. Be2 Nb6 18. c4 Be6 19. Rc1 {1-0 (34) Dragnev,V (2499)-Wallner,J (2311) Vienna 2018}) 14. Rhg1 {[%emt 0:00:00]} Bxc3 {[%emt 0:00:00]} 15. Qxc3 {[%emt 0:00:00]} Qxc3 {[%emt 0:00:42]} 16. bxc3 {[%emt 0:00:00]} Ne4 {[%emt 0:01:10]} 17. Nxe4 {[%emt 0:00:00]} dxe4 {[%emt 0:00:03]} 18. Be2 {[%emt 0:00:42]} Nb6 {[%emt 0:03:48]} 19. g4 {[%emt 0:07:40]} g6 {[%emt 0:01:37]} 20. Rc1 {[%emt 0:02:52]} Be6 {[%emt 0:04:31]} 21. Bg3 {[%emt 0:00:01]} Bc4 {[%emt 0:07:36]} 22. Bd1 {[%emt 0:05:48]} a5 {[%emt 0:10:21]} 23. Re1 {[%emt 0:00:01]} Nd5 {[%emt 0:08:01]} 24. f3 {[%emt 0:05:54]} b4 {[%emt 0:05:52]} (24... exf3 $15 25. Bxf3 Bd3+ 26. Kb2 Be4) 25. cxb4 {[%emt 0:00:31]} Bd3+ {[%emt 0:00:00]} 26. Kb2 $1 {[%emt 0:00:17]} axb4 {[%emt 0:02:37]} 27. fxe4 {[%emt 0:00:20]} Nc3 {[%emt 0:04:39]} ({Don't play} 27... Rxe4 $6 28. Rxc6 Nc3 29. Bb3 $16) 28. Bb3 {[%emt 0:00:01]} Rxe4 {[%emt 0:00:41]} 29. Bd6 {[%emt 0:01:15]} Rxg4 {[%emt 0:04:07]} 30. Bxb4 {[%emt 0:00:15]} Nd5 {[%emt 0:01:28]} 31. Bd6 {[%emt 0:01:24]} Rg2+ {[%emt 0:00:42]} 32. Ka1 {[%emt 0:00:11]} Bb5 {[%emt 0:03:04]} (32... Be4 $1 $15) 33. e4 {[%emt 0:01:58]} Ba4 {[%emt 0:02:55]} 34. Bxa4 {[%emt 0:00:00]} Rxa4 {[%emt 0:00:00]} 35. a3 {[%emt 0:00:07]} Nb6 $2 {[%emt 0:02:55]} (35... Nc7 $11 {and Black has nothing to worry.}) 36. Bb4 {[%emt 0:01:01]} ({Stronger than} 36. Rxc6 Nc4 $15) 36... Rxh2 {[%emt 0:02:08]} (36... Nd7 {was necessary.} 37. Rxc6 Rf2) 37. Rxc6 {[%emt 0:00:01]} Nd7 {[%emt 0:03:07]} 38. Rd6 $2 {[%emt 0:00:00]} (38. Rc7 $18) 38... Ra7 {[%emt 0:00:10]} 39. e5 {[%emt 0:01:13]} Kg7 {[%emt 0:00:41]} (39... Rh5 $16) 40. d5 {[%emt 0:00:51]} Rc7 $2 {[%emt 0:02:25] [#]} (40... Rh4 {was called for.} 41. Bc3 Rh3) 41. Rc6 $2 {[%emt 0:00:01]} (41. e6 $1 $18 Ne5 42. Rb6) 41... Rb7 $2 {[%emt 0:00:00]} (41... Rc2 $16) 42. e6 {[%emt 0:00:17]} fxe6 {[%emt 0:01:00]} 43. dxe6 {[%emt 0:00:00]} Nb8 {[%emt 0:00:46] [#]} 44. e7 $1 {[%emt 0:00:34]} Nxc6 {[%emt 0:01:16]} 45. e8=Q {[%emt 0:00:01]} (45. Bc3+ $142 Ne5 46. e8=Q g5 47. Qxe5+ Kg6 48. Qe4+ Kh5 49. Qf3+ g4 50. Re5+ Kh4 51. Be1+ Rf2 52. Bxf2+ g3 53. Qxg3#) 45... Nxb4 {[%emt 0:00:05]} 46. Qe5+ {[%emt 0:00:02]} Kh7 {[%emt 0:00:12]} 47. Qxh2 {[%emt 0:00:01]} 1-0

[Event "17th Delhi GM Open 2019-B"]
[Site "Delhi"]
[Date "2019.01.11"]
[Round "7"]
[White "Praloy Sahoo"]
[Black "Deepak Batra"]
[Result "0-1"]
[ECO "B91"]
[WhiteElo "1795"]
[BlackElo "1607"]
[Annotator "NA RC"]
[PlyCount "74"]
[EventDate "2019.01.09"]
[EventType "swiss"]
[EventCountry "IND"]
[SourceTitle "playchess.com"]
[Source "ChessBase"]
[SourceQuality "1"]
[TimeControl "3600+30"]

1. e4 {[%emt 0:00:00]} c5 2. Nf3 {[%emt 0:00:00]} d6 {[%emt 0:00:00]} 3. d4 {[%emt 0:00:00]} cxd4 {[%emt 0:00:00]} 4. Nxd4 {[%emt 0:00:00]} Nf6 {[%emt 0:00:00]} 5. Nc3 {[%emt 0:00:00]} a6 {[%emt 0:00:00]} 6. g3 {[%emt 0:00:00]} e5 {[%emt 0:00:00]} 7. Nb3 {[%emt 0:00:00]} Nbd7 {[%emt 0:00:00]} 8. a4 {[%emt 0:00:00]} b6 {[%emt 0:00:00]} 9. Bg2 {[%emt 0:00:00]} Bb7 {[%emt 0:00:00]} 10. O-O {[%emt 0:00:00]} Rc8 {[%emt 0:00:00]} 11. Re1 {[%emt 0:00:00]} Be7 {[%emt 0:00:00]} 12. Nd2 {[%emt 0:00:00]} Rc5 {[%emt 0:00:00]} 13. Nf1 {[%emt 0:00:00]} Qa8 {[%emt 0:00:00]} 14. Be3 {[%emt 0:00:00]} Rc7 {[%emt 0:00:00]} 15. Bg5 {[%emt 0:00:00]} h6 {[%emt 0:00:00]} 16. Bxf6 {[%emt 0:00:00]} Nxf6 {[%emt 0:00:00]} 17. Ne3 {[%emt 0:00:00]} g6 {[%emt 0:00:00]} 18. Qd3 {[%emt 0:00:00]} O-O {[%emt 0:00:00]} 19. Rad1 {[%emt 0:00:00]} Rfc8 {[%emt 0:00:00]} 20. Bh3 {[%emt 0:00:00]} Rxc3 {[%emt 0:00:00]} 21. bxc3 {[%emt 0:00:00]} Bxe4 {[%emt 0:00:00]} 22. Qd2 {[%emt 0:00:00]} Rc5 {[%emt 0:10:17]} 23. c4 {[%emt 0:04:28]} Kg7 {[%emt 0:03:27]} 24. Rb1 {[%emt 0:00:01]} Qc6 {[%emt 0:03:18]} 25. Rb4 {[%emt 0:07:07]} Ra5 {[%emt 0:05:54]} 26. Reb1 {[%emt 0:00:02]} Bd8 {[%emt 0:00:04]} 27. Rd1 {[%emt 0:00:01]} Bc7 {[%emt 0:04:24]} 28. Qe1 {[%emt 0:00:01]} Qe8 {[%emt 0:06:58]} 29. Qc3 {[%emt 0:00:01]} Bc6 {[%emt 0:03:57]} 30. Nd5 {[%emt 0:00:00]} Bxd5 {[%emt 0:04:11]} 31. cxd5 {[%emt 0:00:00]} Nxd5 {[%emt 0:05:41]} 32. Rxd5 {[%emt 0:00:02]} Rxd5 {[%emt 0:00:00]} 33. Qxc7 {[%emt 0:00:01]} Rd1+ {[%emt 0:00:01]} 34. Kg2 {[%emt 0:00:01]} Qa8+ {[%emt 0:00:01]} 35. f3 {[%emt 0:00:01]} Rd2+ {[%emt 0:00:00]} 36. Kg1 {[%emt 0:00:00]} Qxf3 {[%emt 0:00:01]} 37. Qxb6 {[%emt 0:00:06]} Rd1+ {[%emt 0:00:00]} 0-1

[Event "17th Delhi GM Open 2019-B"]
[Site "Delhi"]
[Date "2019.01.11"]
[Round "7"]
[White "Soham Dey"]
[Black "Sham R"]
[Result "0-1"]
[ECO "B84"]
[WhiteElo "1794"]
[BlackElo "1590"]
[Annotator "NA RC"]
[PlyCount "107"]
[EventDate "2019.01.09"]
[EventType "swiss"]
[EventCountry "IND"]
[SourceTitle "playchess.com"]
[Source "ChessBase"]
[SourceQuality "1"]
[TimeControl "3600+30"]

1. e4 {[%emt 0:00:00]} c5 {[%emt 0:00:00]} 2. Nf3 {[%emt 0:00:00]} e6 {[%emt 0:00:00]} 3. d4 {[%emt 0:00:00]} cxd4 {[%emt 0:00:00]} 4. Nxd4 {[%emt 0:00:00]} Nf6 {[%emt 0:00:00]} 5. Nc3 {[%emt 0:00:00]} d6 {[%emt 0:00:00]} 6. Be2 {[%emt 0:00:00]} a6 {[%emt 0:00:00]} 7. O-O {[%emt 0:00:00]} Qc7 {[%emt 0:00:00]} 8. Be3 {[%emt 0:00:00]} b5 {[%emt 0:00:00]} 9. a3 {[%emt 0:00:00]} Bb7 {[%emt 0:00:00]} 10. Qd3 {[%emt 0:00:00]} Nbd7 {[%emt 0:00:00]} 11. f3 Be7 {[%emt 0:00:00]} 12. Qd1 {[%emt 0:00:00]} d5 {[%emt 0:00:00]} 13. exd5 {[%emt 0:00:00]} Nxd5 {[%emt 0:00:00]} 14. Nxd5 {[%emt 0:00:00]} Bxd5 {[%emt 0:00:00]} 15. f4 {[%emt 0:00:00]} Rc8 {[%emt 0:00:00]} 16. c3 {[%emt 0:00:00]} O-O {[%emt 0:00:00]} 17. Bf3 {[%emt 0:00:00]} Nb6 {[%emt 0:00:00]} 18. Bxd5 {[%emt 0:00:00]} Nxd5 {[%emt 0:00:00]} 19. Qf3 {[%emt 0:05:15]} Rfd8 {[%emt 0:00:00]} 20. Rad1 {[%emt 0:00:01]} g6 {[%emt 0:00:00]} 21. Kh1 {[%emt 0:01:16]} Nxe3 {[%emt 0:02:55]} 22. Qxe3 {[%emt 0:00:16]} Bc5 {[%emt 0:00:00]} 23. Rd2 {[%emt 0:08:24]} Bxd4 {[%emt 0:06:39]} 24. cxd4 {[%emt 0:00:00]} Qc4 {[%emt 0:00:34]} 25. Rfd1 {[%emt 0:00:37]} Rd5 {[%emt 0:00:31]} 26. h3 {[%emt 0:00:00]} Rcd8 {[%emt 0:04:02]} 27. Kh2 {[%emt 0:00:01]} a5 {[%emt 0:04:08]} 28. Rd3 Qc7 {[%emt 0:09:22]} 29. g3 {[%emt 0:00:31]} Kg7 {[%emt 0:00:00]} 30. Qd2 {[%emt 0:00:00]} Qb6 {[%emt 0:08:35]} 31. b4 {[%emt 0:00:02]} axb4 {[%emt 0:00:00]} 32. Qxb4 {[%emt 0:00:00]} Ra8 {[%emt 0:03:21]} 33. Rb1 {[%emt 0:00:00]} Qc6 {[%emt 0:07:18]} 34. Rbd1 {[%emt 0:00:00]} Ra4 {[%emt 0:00:01]} 35. Qb2 {[%emt 0:00:00]} Rc4 {[%emt 0:00:18]} 36. R1d2 {[%emt 0:00:00]} Rc1 {[%emt 0:03:22]} 37. Rg2 {[%emt 0:00:00]} Qc4 {[%emt 0:01:44]} 38. Qd2 {[%emt 0:00:00]} h5 {[%emt 0:02:37]} 39. Qe2 {[%emt 0:00:01]} Kh7 {[%emt 0:01:18]} 40. Qe3 {[%emt 0:00:00]} Rd7 {[%emt 0:01:24]} 41. g4 {[%emt 0:00:00]} h4 {[%emt 0:00:54]} 42. Rdd2 {[%emt 0:00:00]} Ra7 {[%emt 0:08:41]} 43. Qf2 {[%emt 0:00:00]} Rxa3 {[%emt 0:00:01]} 44. Qxh4+ {[%emt 0:00:00]} Kg7 {[%emt 0:00:01]} 45. Qf2 {[%emt 0:00:00]} Rcc3 {[%emt 0:00:00]} 46. Qe2 {[%emt 0:00:01]} Rxh3+ {[%emt 0:00:00]} 47. Kg1 {[%emt 0:00:00]} Ra1+ {[%emt 0:01:36]} 48. Kf2 {[%emt 0:00:00]} Qc1 {[%emt 0:00:01]} 49. f5 {[%emt 0:00:00]} Rh1 {[%emt 0:02:36]} 50. fxe6 {[%emt 0:00:00]} Rf1+ {[%emt 0:00:00]} 51. Kg3 {[%emt 0:00:00]} Ra3+ {[%emt 0:01:59]} 52. Kh4 {[%emt 0:00:00]} Rh1+ {[%emt 0:02:38]} 53. Kg5 {[%emt 0:00:00]} f6+ {[%emt 0:01:35]} 54. Kf4 {[%emt 0:00:00]} 0-1